[Event "Amateur Tournament (ATO)"]
[Site "Biel, Switzerland"]
[Date "2026.07.18"]
[Round "5.2"]
[White "Alexakis, Dimitrios"]
[Black "Materia, Mario"]
[Result "1-0"]
[TimeControl "90+30+30sec/move"]
[WhiteTitle "-"]
[BlackTitle "-"]
[WhiteFideId "4200527"]
[BlackFideId "651082241"]
[WhiteElo "1959"]
[BlackElo "1857"]

1. e4 {[%clk 01:30:54]} {[%emt 00:00:04]} e5 {[%clk 01:30:55]} {[%emt
00:00:06]} 2. Nf3 {[%clk 01:31:08]} {[%emt 00:00:15]} Nc6 {[%clk 01:31:21]}
{[%emt 00:00:05]} 3. Bb5 {[%clk 01:31:03]} {[%emt 00:00:34]} a6 {[%clk
01:31:33]} {[%emt 00:00:19]} 4. Ba4 {[%clk 01:31:16]} {[%emt 00:00:17]} Nf6
{[%clk 01:31:03]} {[%emt 00:01:00]} 5. O-O {[%clk 01:31:23]} {[%emt 00:00:22]}
Be7 {[%clk 01:30:43]} {[%emt 00:00:50]} 6. Re1 {[%clk 01:31:14]} {[%emt
00:00:38]} b5 {[%clk 01:31:07]} {[%emt 00:00:07]} 7. Bb3 {[%clk 01:31:31]}
{[%emt 00:00:13]} d6 {[%clk 01:31:21]} {[%emt 00:00:17]} 8. c3 {[%clk
01:31:15]} {[%emt 00:00:45]} O-O {[%clk 01:31:41]} {[%emt 00:00:11]} 9. h3
{[%clk 01:29:25]} {[%emt 00:02:19]} Nb8 {[%clk 01:31:25]} {[%emt 00:00:47]} 10.
d4 {[%clk 01:29:09]} {[%emt 00:00:44]} Nbd7 {[%clk 01:31:47]} {[%emt 00:00:09]}
11. Nbd2 {[%clk 01:28:39]} {[%emt 00:01:00]} c5 {[%clk 01:31:56]} {[%emt
00:00:22]} 12. Nf1 {[%clk 01:27:36]} {[%emt 00:01:31]} Re8 {[%clk 01:29:52]}
{[%emt 00:02:35]} 13. Ng3 {[%clk 01:22:25]} {[%emt 00:05:40]} Bf8 {[%clk
01:25:55]} {[%emt 00:04:28]} 14. a4 {[%clk 01:13:48]} {[%emt 00:09:06]} Rb8
{[%clk 01:24:17]} {[%emt 00:02:07]} 15. axb5 {[%clk 01:11:19]} {[%emt
00:03:01]} axb5 {[%clk 01:24:37]} {[%emt 00:00:11]} 16. dxe5 {[%clk 01:04:46]}
{[%emt 00:07:02]} Nxe5 {[%clk 01:12:20]} {[%emt 00:12:47]} 17. Nxe5 {[%clk
01:04:49]} {[%emt 00:00:27]} dxe5 {[%clk 01:12:17]} {[%emt 00:00:34]} 18. Qe2
{[%clk 01:02:15]} {[%emt 00:03:02]} c4 {[%clk 01:09:56]} {[%emt 00:02:53]} 19.
Bc2 {[%clk 01:02:21]} {[%emt 00:00:23]} Qc7 {[%clk 01:02:12]} {[%emt 00:08:15]}
20. Bg5 {[%clk 01:00:48]} {[%emt 00:02:02]} Nd7 {[%clk 00:59:01]} {[%emt
00:03:42]} 21. Nf5 {[%clk 00:58:56]} {[%emt 00:02:21]} f6 {[%clk 00:58:45]}
{[%emt 00:00:47]} 22. Be3 {[%clk 00:58:05]} {[%emt 00:01:18]} Nc5 {[%clk
00:58:22]} {[%emt 00:00:56]} 23. Red1 {[%clk 00:49:59]} {[%emt 00:08:35]} Bxf5
{[%clk 00:57:54]} {[%emt 00:00:59]} 24. exf5 {[%clk 00:49:50]} {[%emt
00:00:38]} Red8 {[%clk 00:56:17]} {[%emt 00:02:08]} 25. Rxd8 {[%clk 00:39:43]}
{[%emt 00:10:37]} Rxd8 {[%clk 00:56:25]} {[%emt 00:00:21]} 26. Rd1 {[%clk
00:37:34]} {[%emt 00:02:39]} Rxd1+ {[%clk 00:20:32]} 27. Qxd1 {[%clk 00:37:51]}
{[%emt 00:36:36]} Qd7 {[%clk 00:19:50]} {[%emt 00:01:13]} 28. Qxd7 {[%clk
00:35:58]} {[%emt 00:02:22]} Nxd7 {[%clk 00:20:01]} {[%emt 00:00:20]} 29. Be4
{[%clk 00:35:54]} {[%emt 00:00:33]} Bc5 {[%clk 00:17:43]} {[%emt 00:02:19]} 30.
Bc6 {[%clk 00:34:43]} {[%emt 00:01:40]} Bxe3 {[%clk 00:18:03]} {[%emt
00:00:40]} 31. fxe3 {[%clk 00:35:01]} {[%emt 00:00:11]} Nc5 {[%clk 00:18:05]}
{[%emt 00:00:29]} 32. Bxb5 {[%clk 00:35:07]} {[%emt 00:00:24]} Kf8 {[%clk
00:18:24]} {[%emt 00:00:11]} 33. Bxc4 {[%clk 00:33:55]} {[%emt 00:01:42]} Na4
{[%clk 00:18:52]} {[%emt 00:00:03]} 34. b4 {[%clk 00:28:11]} {[%emt 00:06:13]}
Nxc3 {[%clk 00:19:04]} {[%emt 00:00:19]} 35. Kf1 {[%clk 00:23:35]} {[%emt
00:05:06]} Ke7 {[%clk 00:18:06]} {[%emt 00:01:25]} 36. Ke1 {[%clk 00:22:19]}
{[%emt 00:01:47]} Kd6 {[%clk 00:16:32]} {[%emt 00:02:06]} 37. Kd2 {[%clk
00:18:07]} {[%emt 00:04:41]} Na4 {[%clk 00:16:45]} {[%emt 00:00:15]} 38. Kc2
{[%clk 00:17:17]} {[%emt 00:01:22]} Nb6 {[%clk 00:16:47]} {[%emt 00:00:28]} 39.
Kb3 {[%clk 00:15:41]} {[%emt 00:02:06]} Kc6 {[%clk 00:15:48]} {[%emt 00:01:28]}
40. Be6 {[%clk 00:11:11]} {[%emt 00:05:01]} Kb5 {[%clk 00:13:09]} {[%emt
00:03:08]} 41. e4 {[%clk 00:08:02]} {[%emt 00:03:41]} Kc6 {[%clk 00:12:52]}
{[%emt 00:00:47]} 42. h4 {[%clk 00:05:41]} {[%emt 00:02:50]} Kb5 {[%clk
00:09:18]} {[%emt 00:03:34]} 43. g3 {[%clk 00:30:42]} {[%emt 00:05:59]} Kc6
{[%clk 00:39:47]} {[%emt 00:01:03]} 44. Bc4 {[%clk 00:27:50]} {[%emt 00:03:21]}
Kd6 {[%clk 00:36:32]} {[%emt 00:03:45]} 45. Bg8 {[%clk 00:24:58]} {[%emt
00:03:21]} h6 {[%clk 00:36:51]} {[%emt 00:00:12]} 46. Bf7 {[%clk 00:24:15]}
{[%emt 00:01:12]} Ke7 {[%clk 00:36:47]} {[%emt 00:00:35]} 47. Bc4 {[%clk
00:23:57]} {[%emt 00:00:48]} Kd6 {[%clk 00:37:10]} {[%emt 00:00:06]} 48. Bb5
{[%clk 00:22:51]} {[%emt 00:01:37]} Kc7 {[%clk 00:35:16]} {[%emt 00:02:24]} 49.
Kc3 {[%clk 00:21:15]} {[%emt 00:02:06]} Nc8 {[%clk 00:34:06]} {[%emt 00:01:39]}
50. Bd3 {[%clk 00:18:47]} {[%emt 00:02:58]} Kc6 {[%clk 00:33:17]} {[%emt
00:01:17]} 51. Kd2 {[%clk 00:15:32]} {[%emt 00:03:48]} Ne7 {[%clk 00:17:21]}
{[%emt 00:16:26]} 52. Kc3 {[%clk 00:12:46]} {[%emt 00:03:16]} Nc8 {[%clk
00:17:32]} {[%emt 00:00:19]} 53. Kb3 {[%clk 00:10:12]} {[%emt 00:03:04]} Nb6
{[%clk 00:16:54]} {[%emt 00:01:07]} 54. Ba6 {[%clk 00:09:14]} {[%emt 00:01:29]}
Kd6 {[%clk 00:16:25]} {[%emt 00:00:58]} 55. Bc4 {[%clk 00:07:04]} {[%emt
00:02:41]} Kc6 {[%clk 00:15:43]} {[%emt 00:01:13]} 56. Bf7 {[%clk 00:06:28]}
{[%emt 00:01:05]} Kd6 {[%clk 00:15:32]} {[%emt 00:00:41]} 57. Be8 {[%clk
00:06:04]} {[%emt 00:00:54]} Ke7 {[%clk 00:14:53]} {[%emt 00:01:08]} 58. Bc6
{[%clk 00:04:45]} {[%emt 00:01:50]} Kd6 {[%clk 00:14:57]} {[%emt 00:00:26]} 59.
Bb5 {[%clk 00:02:56]} {[%emt 00:02:18]} Ke7 {[%clk 00:14:59]} {[%emt 00:00:29]}
60. Kc3 {[%clk 00:02:52]} {[%emt 00:00:34]} Kd6 {[%clk 00:14:49]} {[%emt
00:00:40]} 61. Kd3 {[%clk 00:02:57]} {[%emt 00:00:24]} Ke7 {[%clk 00:14:46]}
{[%emt 00:00:34]} 62. Ke3 {[%clk 00:03:13]} {[%emt 00:00:14]} Kf7 {[%clk
00:13:57]} {[%emt 00:01:19]} 63. Kf3 {[%clk 00:03:15]} {[%emt 00:00:28]} Nc8
{[%clk 00:03:50]} {[%emt 00:10:37]} 64. Bc4+ {[%clk 00:03:17]} {[%emt
00:00:28]} Kf8 {[%clk 00:04:10]} {[%emt 00:00:09]} 65. Kg4 {[%clk 00:03:12]}
{[%emt 00:00:35]} Nd6 {[%clk 00:04:27]} {[%emt 00:00:14]} 66. Bd5 {[%clk
00:03:05]} {[%emt 00:00:37]} Nb5 {[%clk 00:04:09]} {[%emt 00:00:47]} 67. Bc6
{[%clk 00:02:28]} {[%emt 00:01:08]} Nd6 {[%clk 00:03:38]} {[%emt 00:01:00]} 68.
b5 {[%clk 00:02:23]} {[%emt 00:00:36]} Nc8 {[%clk 00:03:59]} {[%emt 00:00:09]}
69. Kh5 {[%clk 00:02:36]} {[%emt 00:00:18]} Nb6 {[%clk 00:03:37]} {[%emt
00:00:53]} 70. g4 {[%clk 00:02:26]} {[%emt 00:00:38]} Kf7 {[%clk 00:02:57]}
{[%emt 00:01:11]} 71. g5 {[%clk 00:02:42]} {[%emt 00:00:14]} hxg5 {[%clk
00:02:57]} {[%emt 00:00:29]} 72. hxg5 {[%clk 00:03:11]} {[%emt 00:00:02]} Nc8
{[%clk 00:02:03]} {[%emt 00:01:23]} 73. Bd7 {[%clk 00:02:26]} {[%emt 00:01:14]}
Nb6 {[%clk 00:02:06]} {[%emt 00:00:29]} 74. Be6+ {[%clk 00:02:46]} {[%emt
00:00:08]} Ke7 {[%clk 00:01:13]} {[%emt 00:01:24]} 75. Kg6 {[%clk 00:03:04]}
{[%emt 00:00:12]} Na8 {[%clk 00:00:38]} {[%emt 00:01:06]} 76. Kxg7 {[%clk
00:02:47]} {[%emt 00:00:46]} fxg5 {[%clk 00:00:59]} {[%emt 00:00:09]} 77. f6+
{[%clk 00:02:57]} {[%emt 00:00:20]} Kd6 {[%clk 00:01:21]} {[%emt 00:00:09]} 78.
f7 {[%clk 00:03:06]} {[%emt 00:00:20]} Nc7 {[%clk 00:01:46]} {[%emt 00:00:05]}
79. f8=Q+ {[%clk 00:02:56]} {[%emt 00:00:39]} 1-0

[Event "Amateur Tournament (ATO)"]
[Site "Biel, Switzerland"]
[Date "2026.07.18"]
[Round "5.3"]
[White "Czarkowski, Dawid"]
[Black "Aegerter, Fabrice"]
[Result "0-1"]
[TimeControl "90+30+30sec/move"]
[WhiteTitle "-"]
[BlackTitle "-"]
[WhiteFideId "545067392"]
[BlackFideId "1344854"]
[WhiteElo "1713"]
[BlackElo "1915"]

1. d4 {[%clk 01:30:57]} {[%emt 00:00:02]} Nf6 {[%clk 01:30:37]} {[%emt
00:00:23]} 2. c4 {[%clk 01:31:17]} {[%emt 00:00:11]} g6 {[%clk 01:31:00]}
{[%emt 00:00:06]} 3. Nc3 {[%clk 01:31:19]} {[%emt 00:00:29]} d5 {[%clk
01:31:18]} {[%emt 00:00:11]} 4. Bg5 {[%clk 01:30:33]} {[%emt 00:01:15]} Bg7
{[%clk 01:31:26]} {[%emt 00:00:22]} 5. Nf3 {[%clk 01:30:10]} {[%emt 00:00:55]}
c6 {[%clk 01:23:37]} {[%emt 00:08:18]} 6. e3 {[%clk 01:28:12]} {[%emt
00:02:28]} O-O {[%clk 01:22:41]} {[%emt 00:01:26]} 7. Bd3 {[%clk 01:25:57]}
{[%emt 00:02:46]} dxc4 {[%clk 01:05:50]} {[%emt 00:17:20]} 8. Bxc4 {[%clk
01:26:18]} {[%emt 00:00:09]} Nbd7 {[%clk 01:05:43]} {[%emt 00:00:37]} 9. O-O
{[%clk 01:23:57]} {[%emt 00:02:51]} h6 {[%clk 00:52:08]} {[%emt 00:14:04]} 10.
Bf4 {[%clk 01:18:55]} {[%emt 00:05:32]} Nh5 {[%clk 00:43:32]} {[%emt 00:09:07]}
11. Ne2 {[%clk 00:57:52]} {[%emt 00:21:33]} Nb6 {[%clk 00:38:17]} {[%emt
00:05:45]} 12. Bb3 {[%clk 00:50:54]} {[%emt 00:07:28]} Bg4 {[%clk 00:27:54]}
{[%emt 00:10:53]} 13. Qd3 {[%clk 00:45:27]} {[%emt 00:05:56]} Bxf3 {[%clk
00:18:20]} {[%emt 00:10:06]} 14. gxf3 {[%clk 00:45:45]} {[%emt 00:00:11]} Nd5
{[%clk 00:15:27]} {[%emt 00:03:23]} 15. Bg3 {[%clk 00:44:37]} Nxg3 {[%clk
00:15:27]} 16. fxg3 {[%clk 00:44:37]} e6 {[%clk 00:13:37]} {[%emt 00:06:27]} 17.
e4 {[%clk 00:38:34]} Nc7 {[%clk 00:11:29]} {[%emt 00:07:42]} 18. Qe3 {[%clk
00:35:21]} Qe7 {[%clk 00:10:14]} {[%emt 00:05:29]} 19. h4 {[%clk 00:27:38]}
Rad8 {[%clk 00:07:58]} {[%emt 00:10:58]} 20. Rf2 {[%clk 00:22:24]} Rd7 {[%clk
00:07:05]} {[%emt 00:07:07]} 21. Rh2 {[%clk 00:20:37]} Nb5 {[%clk 00:06:34]}
{[%emt 00:03:18]} 22. e5 {[%clk 00:19:02]} Rfd8 {[%clk 00:06:36]} {[%emt
00:02:33]} 23. Rd1 {[%clk 00:18:44]} c5 {[%clk 00:06:54]} {[%emt 00:01:00]} 24.
Ba4 {[%clk 00:15:06]} cxd4 {[%clk 00:06:22]} {[%emt 00:05:10]} 25. Qd3 {[%clk
00:13:03]} a6 {[%clk 00:06:07]} {[%emt 00:03:18]} 26. Bxb5 {[%clk 00:11:23]}
axb5 {[%clk 00:06:28]} {[%emt 00:02:20]} 27. f4 {[%clk 00:10:38]} Qb4 {[%clk
00:05:41]} {[%emt 00:02:31]} 28. b3 {[%clk 00:09:31]} Rd5 {[%clk 00:03:51]}
{[%emt 00:03:56]} 29. g4 {[%clk 00:07:46]} {[%emt 00:02:15]} Ra8 {[%clk
00:01:58]} {[%emt 00:02:25]} 30. Rd2 {[%clk 00:07:20]} {[%emt 00:00:56]} Rc8
{[%clk 00:02:02]} {[%emt 00:00:25]} 31. Rd1 {[%clk 00:05:23]} {[%emt 00:02:26]}
Rc3 {[%clk 00:01:26]} {[%emt 00:01:08]} 32. Nxc3 {[%clk 00:02:38]} {[%emt
00:03:15]} dxc3 {[%clk 00:01:45]} {[%emt 00:00:10]} 33. Qc2 {[%clk 00:02:39]}
{[%emt 00:00:29]} Qxf4 {[%clk 00:01:21]} {[%emt 00:00:54]} 34. Rxd5 {[%clk
00:02:02]} {[%emt 00:01:07]} Qe3+ {[%clk 00:01:30]} {[%emt 00:00:21]} 35. Kh1
{[%clk 00:00:37]} {[%emt 00:01:55]} exd5 {[%clk 00:01:51]} {[%emt 00:00:09]} 36.
Qe2 {[%clk 00:00:42]} {[%emt 00:00:24]} Qxe2 {[%clk 00:01:59]} {[%emt
00:00:23]} 37. Rxe2 {[%clk 00:01:10]} {[%emt 00:00:02]} d4 {[%clk 00:02:21]}
{[%emt 00:00:09]} 38. Kg2 {[%clk 00:00:35]} {[%emt 00:01:05]} d3 {[%clk
00:02:31]} {[%emt 00:00:19]} 39. Re3 {[%clk 00:00:31]} {[%emt 00:00:34]} c2
{[%clk 00:02:14]} {[%emt 00:00:47]} 40. Re1 {[%clk 00:00:31]} {[%emt 00:00:31]}
d2 {[%clk 00:02:33]} {[%emt 00:00:10]} 0-1

[Event "Amateur Tournament (ATO)"]
[Site "Biel, Switzerland"]
[Date "2026.07.18"]
[Round "5.4"]
[White "Pinelli, Gian"]
[Black "Coletta, Julien"]
[Result "1/2-1/2"]
[TimeControl "90+30+30sec/move"]
[WhiteTitle "-"]
[BlackTitle "-"]
[WhiteFideId "1348710"]
[BlackFideId "1342223"]
[WhiteElo "1824"]
[BlackElo "1889"]

1. e4 {[%clk 01:30:57]} {[%emt 00:00:02]} e5 {[%clk 01:30:54]} {[%emt
00:00:07]} 2. d4 {[%clk 01:31:19]} {[%emt 00:00:08]} exd4 {[%clk 01:31:17]}
{[%emt 00:00:06]} 3. Qxd4 {[%clk 01:31:44]} {[%emt 00:00:06]} Nc6 {[%clk
01:31:22]} {[%emt 00:00:25]} 4. Qe3 {[%clk 01:32:06]} {[%emt 00:00:08]} Nf6
{[%clk 01:29:54]} {[%emt 00:01:57]} 5. Bd2 {[%clk 01:32:30]} {[%emt 00:00:07]}
Be7 {[%clk 01:26:16]} {[%emt 00:04:08]} 6. Nc3 {[%clk 01:32:49]} {[%emt
00:00:10]} d5 {[%clk 01:14:58]} {[%emt 00:11:48]} 7. exd5 {[%clk 01:33:05]}
{[%emt 00:00:15]} Nxd5 {[%clk 01:15:18]} {[%emt 00:00:10]} 8. Nxd5 {[%clk
01:33:17]} {[%emt 00:00:18]} Qxd5 {[%clk 01:15:36]} {[%emt 00:00:12]} 9. Ne2
{[%clk 01:33:33]} {[%emt 00:00:14]} O-O {[%clk 01:05:50]} {[%emt 00:10:16]} 10.
Nf4 {[%clk 01:32:24]} {[%emt 00:01:38]} Qd4 {[%clk 01:03:02]} {[%emt 00:03:18]}
11. Qxd4 {[%clk 01:25:33]} {[%emt 00:07:22]} Nxd4 {[%clk 01:03:26]} {[%emt
00:00:06]} 12. O-O-O {[%clk 01:25:13]} {[%emt 00:00:49]} Bf5 {[%clk 00:55:39]}
{[%emt 00:08:15]} 13. Bd3 {[%clk 01:24:42]} {[%emt 00:01:03]} Bxd3 {[%clk
00:54:53]} {[%emt 00:01:16]} 14. Nxd3 {[%clk 01:25:10]} {[%emt 00:00:02]} Bd6
{[%clk 00:48:20]} {[%emt 00:07:03]} 15. h3 {[%clk 01:20:10]} {[%emt 00:05:30]}
Rfe8 {[%clk 00:43:56]} {[%emt 00:04:53]} 16. c3 {[%clk 01:13:12]} {[%emt
00:07:29]} Ne6 {[%clk 00:43:52]} {[%emt 00:00:33]} 17. Be3 {[%clk 01:10:20]}
{[%emt 00:03:23]} Rad8 {[%clk 00:36:38]} {[%emt 00:07:44]} 1/2-1/2

[Event "Amateur Tournament (ATO)"]
[Site "Biel, Switzerland"]
[Date "2026.07.18"]
[Round "5.5"]
[White "Keller, Felix"]
[Black "Zhou, Abigail"]
[Result "1/2-1/2"]
[TimeControl "90+30+30sec/move"]
[WhiteTitle "-"]
[BlackTitle "-"]
[WhiteFideId "1309587"]
[BlackFideId "39922081"]
[WhiteElo "1920"]
[BlackElo "1831"]

1. d4 {[%clk 01:30:48]} {[%emt 00:00:08]} d5 {[%clk 01:30:55]} {[%emt
00:00:06]} 2. c4 {[%clk 01:31:10]} {[%emt 00:00:08]} e6 {[%clk 01:31:20]}
{[%emt 00:00:05]} 3. Nf3 {[%clk 01:31:29]} {[%emt 00:00:11]} Nf6 {[%clk
01:31:41]} {[%emt 00:00:10]} 4. Bg5 {[%clk 01:31:36]} {[%emt 00:00:23]} Be7
{[%clk 01:32:04]} {[%emt 00:00:07]} 5. Nc3 {[%clk 01:31:51]} {[%emt 00:00:15]}
Nbd7 {[%clk 01:32:20]} {[%emt 00:00:14]} 6. e3 {[%clk 01:31:25]} {[%emt
00:00:56]} O-O {[%clk 01:31:59]} {[%emt 00:00:51]} 7. cxd5 {[%clk 01:30:01]}
{[%emt 00:01:53]} exd5 {[%clk 01:32:07]} {[%emt 00:00:22]} 8. Bd3 {[%clk
01:29:39]} {[%emt 00:00:51]} c6 {[%clk 01:32:01]} {[%emt 00:00:37]} 9. O-O
{[%clk 01:29:45]} {[%emt 00:00:25]} h6 {[%clk 01:31:29]} {[%emt 00:01:01]} 10.
Bh4 {[%clk 01:29:39]} {[%emt 00:00:36]} Re8 {[%clk 01:26:01]} {[%emt 00:05:58]}
11. Qc2 {[%clk 01:29:41]} {[%emt 00:00:28]} Nf8 {[%clk 01:25:55]} {[%emt
00:00:36]} 12. Rab1 {[%clk 01:29:22]} {[%emt 00:00:49]} a5 {[%clk 01:24:27]}
{[%emt 00:01:58]} 13. a3 {[%clk 01:28:37]} {[%emt 00:01:15]} Be6 {[%clk
01:24:16]} {[%emt 00:00:41]} 14. b4 {[%clk 01:28:24]} {[%emt 00:00:43]} axb4
{[%clk 01:21:01]} {[%emt 00:03:45]} 15. axb4 {[%clk 01:28:37]} {[%emt
00:00:17]} Rc8 {[%clk 01:21:14]} {[%emt 00:00:17]} 16. Na4 {[%clk 01:26:05]}
{[%emt 00:03:02]} N8d7 {[%clk 01:16:53]} {[%emt 00:04:51]} 17. Nc5 {[%clk
01:24:00]} {[%emt 00:02:35]} Qb6 {[%clk 01:12:06]} {[%emt 00:05:17]} 18. Rfc1
{[%clk 01:20:29]} {[%emt 00:04:00]} Bd6 {[%clk 01:05:22]} {[%emt 00:07:14]} 19.
Ra1 {[%clk 01:14:56]} {[%emt 00:06:04]} Ra8 {[%clk 00:59:13]} {[%emt 00:06:40]}
20. Ra4 {[%clk 01:12:37]} {[%emt 00:02:47]} Ra7 {[%clk 00:51:57]} {[%emt
00:07:48]} 21. Bg3 {[%clk 00:58:46]} {[%emt 00:14:20]} Bxg3 {[%clk 00:50:31]}
{[%emt 00:01:55]} 22. hxg3 {[%clk 00:59:09]} {[%emt 00:00:07]} Rea8 {[%clk
00:41:17]} {[%emt 00:09:46]} 23. Rxa7 {[%clk 00:58:02]} {[%emt 00:01:36]} Qxa7
{[%clk 00:39:22]} {[%emt 00:02:25]} 24. Rb1 {[%clk 00:52:12]} {[%emt 00:06:16]}
1/2-1/2

[Event "Amateur Tournament (ATO)"]
[Site "Biel, Switzerland"]
[Date "2026.07.18"]
[Round "5.6"]
[White "Jud, Marc"]
[Black "Lupei, Denis"]
[Result "1-0"]
[TimeControl "90+30+30sec/move"]
[WhiteTitle "-"]
[BlackTitle "-"]
[WhiteFideId "1309099"]
[BlackFideId "34611231"]
[WhiteElo "1991"]
[BlackElo "1845"]

1. d4 {[%clk 01:30:57]} {[%emt 00:00:03]} Nf6 {[%clk 01:30:54]} {[%emt
00:00:07]} 2. Nf3 {[%clk 01:31:13]} {[%emt 00:00:13]} e6 {[%clk 01:31:18]}
{[%emt 00:00:05]} 3. e3 {[%clk 01:31:25]} {[%emt 00:00:18]} b6 {[%clk
01:31:35]} {[%emt 00:00:13]} 4. c4 {[%clk 01:31:15]} {[%emt 00:00:40]} Bb7
{[%clk 01:31:57]} {[%emt 00:00:09]} 5. Be2 {[%clk 01:31:19]} {[%emt 00:00:25]}
Be7 {[%clk 01:32:12]} {[%emt 00:00:15]} 6. O-O {[%clk 01:31:27]} {[%emt
00:00:23]} O-O {[%clk 01:32:30]} {[%emt 00:00:12]} 7. b3 {[%clk 01:31:50]}
{[%emt 00:00:07]} d5 {[%clk 01:32:14]} {[%emt 00:00:45]} 8. Bb2 {[%clk
01:32:11]} {[%emt 00:00:09]} Nbd7 {[%clk 01:32:29]} {[%emt 00:00:15]} 9. cxd5
{[%clk 01:32:25]} {[%emt 00:00:17]} exd5 {[%clk 01:32:49]} {[%emt 00:00:10]} 10.
Nbd2 {[%clk 01:32:31]} {[%emt 00:00:23]} Rc8 {[%clk 01:32:22]} {[%emt
00:00:57]} 11. Ne5 {[%clk 01:31:38]} {[%emt 00:01:24]} Re8 {[%clk 01:29:12]}
{[%emt 00:03:39]} 12. Ndf3 {[%clk 01:30:59]} {[%emt 00:01:09]} Bd6 {[%clk
01:20:00]} {[%emt 00:09:43]} 13. Bd3 {[%clk 01:25:49]} {[%emt 00:05:39]} Ne4
{[%clk 01:14:37]} {[%emt 00:05:53]} 14. Rc1 {[%clk 01:23:30]} {[%emt 00:02:50]}
Re6 {[%clk 00:57:28]} {[%emt 00:17:39]} 15. Nxd7 {[%clk 01:19:01]} {[%emt
00:04:59]} Qxd7 {[%clk 00:57:40]} {[%emt 00:00:17]} 16. Ne5 {[%clk 01:19:11]}
{[%emt 00:00:21]} Rh6 {[%clk 00:40:38]} {[%emt 00:17:31]} 17. f3 {[%clk
01:13:56]} {[%emt 00:05:45]} Bxe5 {[%clk 00:35:48]} {[%emt 00:05:20]} 18. dxe5
{[%clk 01:13:59]} {[%emt 00:00:27]} Nc5 {[%clk 00:34:07]} {[%emt 00:02:12]} 19.
Bb1 {[%clk 01:10:31]} {[%emt 00:03:57]} Ba6 {[%clk 00:26:48]} {[%emt 00:07:49]}
20. Rf2 {[%clk 01:08:36]} {[%emt 00:02:24]} Rd8 {[%clk 00:24:57]} {[%emt
00:02:21]} 21. Rd2 {[%clk 01:05:12]} {[%emt 00:03:54]} Ne6 {[%clk 00:22:50]}
{[%emt 00:02:38]} 22. f4 {[%clk 01:02:18]} {[%emt 00:03:25]} c5 {[%clk
00:21:32]} {[%emt 00:01:48]} 23. f5 {[%clk 00:58:35]} {[%emt 00:04:13]} Nc7
{[%clk 00:19:17]} {[%emt 00:02:44]} 24. Qg4 {[%clk 00:56:49]} {[%emt 00:02:16]}
Bc8 {[%clk 00:12:15]} {[%emt 00:07:32]} 25. Qg5 {[%clk 00:51:51]} {[%emt
00:05:29]} a5 {[%clk 00:11:47]} {[%emt 00:00:58]} 26. e6 {[%clk 00:49:00]}
{[%emt 00:03:21]} fxe6 {[%clk 00:11:46]} {[%emt 00:00:30]} 27. Bxg7 {[%clk
00:49:10]} {[%emt 00:00:20]} Qxg7 {[%clk 00:08:29]} {[%emt 00:03:48]} 28. Qxd8+
{[%clk 00:49:33]} {[%emt 00:00:07]} Qf8 {[%clk 00:08:55]} {[%emt 00:00:04]} 29.
Qxc7 {[%clk 00:48:53]} {[%emt 00:01:10]} Bb7 {[%clk 00:08:27]} {[%emt
00:00:58]} 30. Qxb7 {[%clk 00:48:25]} {[%emt 00:00:57]} Rxh2 {[%clk 00:08:51]}
{[%emt 00:00:06]} 31. Re1 {[%clk 00:45:46]} {[%emt 00:03:08]} Qd8 {[%clk
00:06:55]} {[%emt 00:02:27]} 32. f6 {[%clk 00:43:39]} {[%emt 00:02:38]} Qxf6
{[%clk 00:06:55]} {[%emt 00:00:30]} 33. Qb8+ {[%clk 00:43:59]} {[%emt
00:00:10]} Kg7 {[%clk 00:07:07]} {[%emt 00:00:18]} 34. Qxh2 {[%clk 00:44:18]}
{[%emt 00:00:11]} 1-0